[Event "Early-Titled-Tuesday-Blitz-January-30-2024"]
[Site "Chess.com"]
[Date "2024.01.30"]
[Round "4"]
[White "spaski2004"]
[Black "OhanyanEminChess"]
[Result "1-0"]
[WhiteElo "2979"]
[BlackElo "2824"]
[TimeControl "180+1"]
[EndTime "8:41:24 PST"]
[Termination "spaski2004 won by resignation"]

1. Nf3 {[%clk 0:02:50.6]} 1... d5 {[%clk 0:03:00]} 2. e3 {[%clk 0:02:51]} 2...
g6 {[%clk 0:02:57]} 3. c4 {[%clk 0:02:45.2]} 3... e6 {[%clk 0:02:53.8]} 4. b3
{[%clk 0:02:38]} 4... Bg7 {[%clk 0:02:53.3]} 5. Nc3 {[%clk 0:02:38.1]} 5... Ne7
{[%clk 0:02:48.7]} 6. h4 {[%clk 0:02:30.1]} 6... h5 {[%clk 0:02:36.3]} 7. Ba3
{[%clk 0:02:28.5]} 7... b6 {[%clk 0:02:28.1]} 8. cxd5 {[%clk 0:02:22.9]} 8...
Nxd5 {[%clk 0:02:26.6]} 9. Qc2 {[%clk 0:02:15.2]} 9... c5 {[%clk 0:02:25.5]} 10.
Rd1 {[%clk 0:02:09.2]} 10... Nxc3 {[%clk 0:01:53.2]} 11. dxc3 {[%clk 0:02:00.8]}
11... Qc7 {[%clk 0:01:52.6]} 12. Bb5+ {[%clk 0:01:44.5]} 12... Bd7 {[%clk
0:01:51.8]} 13. Bxd7+ {[%clk 0:01:40.2]} 13... Nxd7 {[%clk 0:01:51.9]} 14. c4
{[%clk 0:01:41.1]} 14... Ne5 {[%clk 0:00:58.9]} 15. Ng5 {[%clk 0:01:40.3]} 15...
O-O {[%clk 0:00:53.2]} 16. Bb2 {[%clk 0:01:36.2]} 16... Rad8 {[%clk 0:00:50.5]}
17. Ke2 {[%clk 0:01:31.7]} 17... Ng4 {[%clk 0:00:41.9]} 18. Bxg7 {[%clk
0:01:22.2]} 18... Kxg7 {[%clk 0:00:42.8]} 19. Qc3+ {[%clk 0:01:22.6]} 19... Qe5
{[%clk 0:00:41.8]} 20. Qxe5+ {[%clk 0:01:15.5]} 20... Nxe5 {[%clk 0:00:42.1]}
21. Ne4 {[%clk 0:01:16.1]} 21... f5 {[%clk 0:00:36.9]} 22. Ng5 {[%clk
0:01:14.4]} 22... Kf6 {[%clk 0:00:37.1]} 23. Nh7+ {[%clk 0:01:10.2]} 23... Ke7
{[%clk 0:00:35.2]} 24. Nxf8 {[%clk 0:01:11.1]} 24... Rxf8 {[%clk 0:00:34.9]} 25.
Rd2 {[%clk 0:01:09.8]} 25... f4 {[%clk 0:00:26.9]} 26. exf4 {[%clk 0:01:10.7]}
26... Rxf4 {[%clk 0:00:27.8]} 27. Ke3 {[%clk 0:01:11]} 27... Rf8 {[%clk
0:00:21.6]} 28. f3 {[%clk 0:01:10.6]} 28... Nc6 {[%clk 0:00:22]} 29. Rhd1 {[%clk
0:01:06.1]} 29... Nd4 {[%clk 0:00:21.5]} 30. b4 {[%clk 0:00:57.6]} 30... Rc8
{[%clk 0:00:07.1]} 31. Ke4 {[%clk 0:00:50.4]} 31... Kf6 {[%clk 0:00:02.5]} 32.
g4 {[%clk 0:00:49.1]} 32... Nc6 {[%clk 0:00:01.2]} 33. g5+ {[%clk 0:00:45.9]}
33... Kf7 {[%clk 0:00:01.9]} 34. Rd7+ {[%clk 0:00:38.7]} 34... Ke8 {[%clk
0:00:02.3]} 35. b5 {[%clk 0:00:39.6]} 35... Nd4 {[%clk 0:00:02.6]} 36. Rxa7
{[%clk 0:00:36.3]} 36... Kf8 {[%clk 0:00:03.2]} 37. Rb7 {[%clk 0:00:33.7]} 37...
Ra8 {[%clk 0:00:02.7]} 38. Rxb6 {[%clk 0:00:30.3]} 38... Rxa2 {[%clk 0:00:02.8]}
39. Rxd4 {[%clk 0:00:17.7]} 39... cxd4 {[%clk 0:00:03.7]} 40. Kxd4 {[%clk
0:00:18.6]} 40... Ke7 {[%clk 0:00:03.2]} 41. Rb7+ {[%clk 0:00:18.9]} 41... Kd8
{[%clk 0:00:03.4]} 42. Rg7 {[%clk 0:00:18.6]} 42... Rh2 {[%clk 0:00:03]} 43.
Rxg6 {[%clk 0:00:18.1]} 43... Rxh4+ {[%clk 0:00:03.7]} 44. Kc5 {[%clk
0:00:18.3]} 44... Rf4 {[%clk 0:00:04.1]} 45. Rxe6 {[%clk 0:00:18]} 45... Rf5+
{[%clk 0:00:03.8]} 46. Kc6 {[%clk 0:00:17.5]} 46... Rxg5 {[%clk 0:00:04.7]} 47.
b6 {[%clk 0:00:17.3]} 47... Rg1 {[%clk 0:00:04.1]} 48. b7 {[%clk 0:00:16.8]}
48... Rb1 {[%clk 0:00:04.8]} 49. Rh6 {[%clk 0:00:17]} 1-0

[Event "Early-Titled-Tuesday-Blitz-January-30-2024"]
[Site "Chess.com"]
[Date "2024.01.30"]
[Round "4"]
[White "Byniolus"]
[Black "Sebastian"]
[Result "0-1"]
[WhiteElo "2819"]
[BlackElo "2967"]
[TimeControl "180+1"]
[EndTime "8:41:26 PST"]
[Termination "Sebastian won by checkmate"]

1. d4 {[%clk 0:03:00.9]} 1... d5 {[%clk 0:02:59.7]} 2. Bf4 {[%clk 0:03:00.7]}
2... Nf6 {[%clk 0:03:00]} 3. e3 {[%clk 0:03:01.2]} 3... e6 {[%clk 0:03:00.3]} 4.
Nd2 {[%clk 0:03:01.4]} 4... c5 {[%clk 0:03:00.6]} 5. c3 {[%clk 0:03:01.5]} 5...
Bd6 {[%clk 0:02:58.6]} 6. Bg3 {[%clk 0:03:01]} 6... O-O {[%clk 0:02:54.8]} 7.
Ngf3 {[%clk 0:03:01.2]} 7... Qc7 {[%clk 0:02:52.5]} 8. Rc1 {[%clk 0:03:00]} 8...
Nbd7 {[%clk 0:02:52.2]} 9. c4 {[%clk 0:03:00.1]} 9... b6 {[%clk 0:02:51.7]} 10.
Be2 {[%clk 0:02:57]} 10... Bb7 {[%clk 0:02:50.8]} 11. dxc5 {[%clk 0:02:56.5]}
11... bxc5 {[%clk 0:02:46.2]} 12. Qa4 {[%clk 0:02:53.8]} 12... Rfd8 {[%clk
0:02:33.8]} 13. O-O {[%clk 0:02:50.4]} 13... Bxg3 {[%clk 0:02:25.4]} 14. hxg3
{[%clk 0:02:51.3]} 14... d4 {[%clk 0:02:13.2]} 15. exd4 {[%clk 0:02:34.9]} 15...
cxd4 {[%clk 0:02:12.7]} 16. c5 {[%clk 0:02:35.8]} 16... Rac8 {[%clk 0:01:36.2]}
17. Nb3 {[%clk 0:02:20]} 17... e5 {[%clk 0:01:30.3]} 18. Bc4 {[%clk 0:01:53.9]}
18... h6 {[%clk 0:01:16.3]} 19. Rfe1 {[%clk 0:01:50.9]} 19... Re8 {[%clk
0:01:05.9]} 20. Bb5 {[%clk 0:01:22.6]} 20... a6 {[%clk 0:00:59.2]} 21. Bxa6
{[%clk 0:00:47.6]} 21... Ra8 {[%clk 0:00:57.4]} 22. c6 {[%clk 0:00:48.1]} 22...
Bxa6 {[%clk 0:00:37]} 23. cxd7 {[%clk 0:00:48.1]} 23... Qxd7 {[%clk 0:00:37.6]}
24. Qb4 {[%clk 0:00:28.4]} 24... Ng4 {[%clk 0:00:22.7]} 25. Nc5 {[%clk
0:00:20.6]} 25... Qd6 {[%clk 0:00:19.8]} 26. Nxa6 {[%clk 0:00:20]} 26... Qxa6
{[%clk 0:00:19.7]} 27. a3 {[%clk 0:00:14]} 27... Rab8 {[%clk 0:00:18.8]} 28. Qd2
{[%clk 0:00:10.2]} 28... Qb6 {[%clk 0:00:18.6]} 29. b4 {[%clk 0:00:09.8]} 29...
d3 {[%clk 0:00:18.2]} 30. Rc4 {[%clk 0:00:07.3]} 30... Qg6 {[%clk 0:00:14.7]}
31. Nh4 {[%clk 0:00:06.2]} 31... Qe6 {[%clk 0:00:03.5]} 32. Qxd3 {[%clk
0:00:05.7]} 32... Rbd8 {[%clk 0:00:02.9]} 33. Qc2 {[%clk 0:00:05.5]} 33... Nf6
{[%clk 0:00:02.1]} 34. Nf5 {[%clk 0:00:04.8]} 34... e4 {[%clk 0:00:02.5]} 35.
Rc6 {[%clk 0:00:05.1]} 35... Qxf5 {[%clk 0:00:02.6]} 36. Rc5 {[%clk 0:00:04.2]}
36... Qe6 {[%clk 0:00:02.7]} 37. b5 {[%clk 0:00:04.9]} 37... Qd6 {[%clk
0:00:02.9]} 38. a4 {[%clk 0:00:04.5]} 38... e3 {[%clk 0:00:03.2]} 39. fxe3
{[%clk 0:00:02.3]} 39... Qxg3 {[%clk 0:00:03.4]} 40. Qf2 {[%clk 0:00:03.1]}
40... Qd6 {[%clk 0:00:02.8]} 41. Rc6 {[%clk 0:00:03]} 41... Qb4 {[%clk
0:00:03.5]} 42. Qg3 {[%clk 0:00:02]} 42... Ne4 {[%clk 0:00:03.4]} 43. Qh4 {[%clk
0:00:02.5]} 43... g5 {[%clk 0:00:03.2]} 44. Qxh6 {[%clk 0:00:01.7]} 44... Qxe1+
{[%clk 0:00:03.6]} 45. Kh2 {[%clk 0:00:02.6]} 45... Qg3+ {[%clk 0:00:04.2]} 46.
Kh1 {[%clk 0:00:03]} 46... Rd1# {[%clk 0:00:05]} 0-1

[Event "Early-Titled-Tuesday-Blitz-January-30-2024"]
[Site "Chess.com"]
[Date "2024.01.30"]
[Round "4"]
[White "treadstone_71"]
[Black "topalovkramnik"]
[Result "0-1"]
[WhiteElo "2267"]
[BlackElo "2442"]
[TimeControl "180+1"]
[EndTime "8:41:28 PST"]
[Termination "topalovkramnik won by resignation"]

1. e4 {[%clk 0:02:55]} 1... c5 {[%clk 0:02:57.6]} 2. Nf3 {[%clk 0:02:54.7]} 2...
d6 {[%clk 0:02:57.8]} 3. d4 {[%clk 0:02:55.1]} 3... cxd4 {[%clk 0:02:58.7]} 4.
Nxd4 {[%clk 0:02:55.7]} 4... Nf6 {[%clk 0:02:59.3]} 5. Nc3 {[%clk 0:02:56.3]}
5... a6 {[%clk 0:02:59.8]} 6. Bg5 {[%clk 0:02:56.9]} 6... e6 {[%clk 0:02:58.3]}
7. f4 {[%clk 0:02:57]} 7... Be7 {[%clk 0:02:56.2]} 8. Qf3 {[%clk 0:02:57.2]}
8... Qc7 {[%clk 0:02:55.5]} 9. O-O-O {[%clk 0:02:57.2]} 9... Nbd7 {[%clk
0:02:55.3]} 10. g4 {[%clk 0:02:57.6]} 10... b5 {[%clk 0:02:54.4]} 11. Bxf6
{[%clk 0:02:57.8]} 11... Nxf6 {[%clk 0:02:55.3]} 12. g5 {[%clk 0:02:58.2]} 12...
Nd7 {[%clk 0:02:55.8]} 13. f5 {[%clk 0:02:58.7]} 13... O-O {[%clk 0:02:56.3]}
14. Rg1 {[%clk 0:02:48.9]} 14... b4 {[%clk 0:02:20.8]} 15. f6 {[%clk 0:02:35.6]}
15... bxc3 {[%clk 0:02:18.3]} 16. fxe7 {[%clk 0:02:35.2]} 16... cxb2+ {[%clk
0:02:18.5]} 17. Kb1 {[%clk 0:02:35.2]} 17... Re8 {[%clk 0:02:17.8]} 18. e5
{[%clk 0:01:19.7]} 18... Bb7 {[%clk 0:02:15.4]} 19. Qh3 {[%clk 0:01:19.2]} 19...
Nxe5 {[%clk 0:02:13.5]} 20. g6 {[%clk 0:01:08.6]} 20... Nxg6 {[%clk 0:02:11.8]}
21. Bd3 {[%clk 0:01:06.5]} 21... Rxe7 {[%clk 0:02:09.4]} 22. Rde1 {[%clk
0:00:44.5]} 22... Rae8 {[%clk 0:02:02.8]} 23. Qg4 {[%clk 0:00:36.2]} 23... Bd5
{[%clk 0:02:00]} 24. h4 {[%clk 0:00:22.2]} 24... Qa5 {[%clk 0:01:20]} 25. Nb3
{[%clk 0:00:21.8]} 25... Bxb3 {[%clk 0:01:19.6]} 26. cxb3 {[%clk 0:00:22.7]}
26... h5 {[%clk 0:01:05.3]} 27. Qg3 {[%clk 0:00:15.5]} 27... Qc3 {[%clk
0:00:54.1]} 28. Bxg6 {[%clk 0:00:15.4]} 28... Qxg3 {[%clk 0:00:53.3]} 29. Rxg3
{[%clk 0:00:12.1]} 29... fxg6 {[%clk 0:00:52.8]} 30. Rxg6 {[%clk 0:00:13]} 30...
Kh7 {[%clk 0:00:50.1]} 31. Rg5 {[%clk 0:00:13.2]} 31... g6 {[%clk 0:00:50.3]}
32. Kxb2 {[%clk 0:00:13.6]} 32... e5 {[%clk 0:00:48.7]} 33. Kc3 {[%clk
0:00:10.2]} 33... Rf7 {[%clk 0:00:45.8]} 34. Kd3 {[%clk 0:00:09.6]} 34... Rf3+
{[%clk 0:00:42.3]} 35. Ke4 {[%clk 0:00:09.5]} 35... Rf4+ {[%clk 0:00:40.2]} 36.
Kd5 {[%clk 0:00:08.4]} 36... Rd4+ {[%clk 0:00:40.7]} 37. Kc6 {[%clk 0:00:08.7]}
37... Kh6 {[%clk 0:00:39.6]} 38. Rf1 {[%clk 0:00:06.6]} 38... Rxh4 {[%clk
0:00:37.8]} 39. Rgg1 {[%clk 0:00:05.7]} 39... Rd4 {[%clk 0:00:34.8]} 40. Rf6
{[%clk 0:00:04.4]} 40... Rg4 {[%clk 0:00:34.3]} 41. Rgf1 {[%clk 0:00:04.5]}
41... e4 {[%clk 0:00:33.6]} 42. Kd7 {[%clk 0:00:04.3]} 42... Re5 {[%clk
0:00:32.2]} 43. Kxd6 {[%clk 0:00:04.8]} 43... Rgg5 {[%clk 0:00:25.7]} 44. a4
{[%clk 0:00:03.7]} 44... Rd5+ {[%clk 0:00:26.2]} 45. Ke6 {[%clk 0:00:03.5]}
45... Rge5+ {[%clk 0:00:26.8]} 46. Kf7 {[%clk 0:00:04]} 46... Rd7+ {[%clk
0:00:27.4]} 47. Kf8 {[%clk 0:00:04.6]} 47... e3 {[%clk 0:00:24.4]} 48. Rg1
{[%clk 0:00:04.8]} 48... Rf5 {[%clk 0:00:24.1]} 49. Rxf5 {[%clk 0:00:04.8]}
49... gxf5 {[%clk 0:00:25]} 50. Ke8 {[%clk 0:00:05.3]} 50... Rd4 {[%clk
0:00:23.8]} 0-1

[Event "Early-Titled-Tuesday-Blitz-January-30-2024"]
[Site "Chess.com"]
[Date "2024.01.30"]
[Round "4"]
[White "IwkooO"]
[Black "jamengrand"]
[Result "1-0"]
[WhiteElo "2648"]
[BlackElo "2257"]
[TimeControl "180+1"]
[EndTime "8:41:29 PST"]
[Termination "IwkooO won by resignation"]

1. e4 {[%clk 0:03:00.9]} 1... e5 {[%clk 0:03:00.1]} 2. Nf3 {[%clk 0:03:01.4]}
2... Nc6 {[%clk 0:03:00.4]} 3. Bb5 {[%clk 0:03:02]} 3... a6 {[%clk 0:03:00]} 4.
Ba4 {[%clk 0:03:02]} 4... Nf6 {[%clk 0:03:00.3]} 5. O-O {[%clk 0:03:01.9]} 5...
Be7 {[%clk 0:03:00.3]} 6. d3 {[%clk 0:03:00.2]} 6... b5 {[%clk 0:02:55.8]} 7.
Bb3 {[%clk 0:03:00.6]} 7... d6 {[%clk 0:02:54.9]} 8. a3 {[%clk 0:03:01.3]} 8...
O-O {[%clk 0:02:53.4]} 9. Nc3 {[%clk 0:03:01.1]} 9... Be6 {[%clk 0:02:52.6]} 10.
Nd5 {[%clk 0:02:46.4]} 10... Bxd5 {[%clk 0:02:52.2]} 11. exd5 {[%clk 0:02:45.9]}
11... Na5 {[%clk 0:02:49.1]} 12. Ba2 {[%clk 0:02:46.1]} 12... Nb7 {[%clk
0:02:40.4]} 13. Re1 {[%clk 0:02:32.1]} 13... Re8 {[%clk 0:02:39.7]} 14. d4
{[%clk 0:02:21.7]} 14... e4 {[%clk 0:02:39.4]} 15. Nd2 {[%clk 0:02:22]} 15...
Bf8 {[%clk 0:02:39.4]} 16. Nf1 {[%clk 0:02:22.4]} 16... Qd7 {[%clk 0:02:35.4]}
17. Bg5 {[%clk 0:02:11.7]} 17... Qf5 {[%clk 0:02:20.1]} 18. Bxf6 {[%clk
0:01:58.9]} 18... Qxf6 {[%clk 0:02:20.1]} 19. Ng3 {[%clk 0:01:47]} 19... Qg6
{[%clk 0:02:20.3]} 20. Qh5 {[%clk 0:01:33.4]} 20... Qxh5 {[%clk 0:02:08.6]} 21.
Nxh5 {[%clk 0:01:34.3]} 21... f5 {[%clk 0:01:56.9]} 22. h4 {[%clk 0:01:21.1]}
22... Nd8 {[%clk 0:01:51.5]} 23. Nf4 {[%clk 0:01:15.8]} 23... Kf7 {[%clk
0:01:49.9]} 24. Re2 {[%clk 0:01:10.5]} 24... g6 {[%clk 0:01:49.8]} 25. g3 {[%clk
0:01:05.5]} 25... Bh6 {[%clk 0:01:50]} 26. Ne6 {[%clk 0:01:05.7]} 26... Nxe6
{[%clk 0:01:49.7]} 27. dxe6+ {[%clk 0:01:06.6]} 27... Ke7 {[%clk 0:01:49.7]} 28.
Bd5 {[%clk 0:01:00.4]} 28... Rab8 {[%clk 0:01:47.4]} 29. Bc6 {[%clk 0:00:59.8]}
29... Rf8 {[%clk 0:01:47.4]} 30. d5 {[%clk 0:00:59.5]} 30... a5 {[%clk 0:01:35]}
31. b4 {[%clk 0:00:56.5]} 31... Bg7 {[%clk 0:01:29.9]} 32. Rb1 {[%clk
0:00:54.8]} 32... a4 {[%clk 0:01:24.9]} 33. Kg2 {[%clk 0:00:50.3]} 33... Bd4
{[%clk 0:01:22.8]} 34. f3 {[%clk 0:00:34.3]} 34... exf3+ {[%clk 0:01:18.6]} 35.
Kxf3 {[%clk 0:00:34.6]} 35... Rf6 {[%clk 0:01:05.1]} 36. Rd1 {[%clk 0:00:34.4]}
36... Ba7 {[%clk 0:01:04.7]} 37. c4 {[%clk 0:00:32.6]} 37... bxc4 {[%clk
0:01:00.6]} 38. Rc1 {[%clk 0:00:33.2]} 38... h5 {[%clk 0:00:57.8]} 39. Rxc4
{[%clk 0:00:33.3]} 39... Rbf8 {[%clk 0:00:44.4]} 40. Bxa4 {[%clk 0:00:32.3]}
40... f4 {[%clk 0:00:44.3]} 41. Rxf4 {[%clk 0:00:31.8]} 41... Rxf4+ {[%clk
0:00:44.4]} 42. gxf4 {[%clk 0:00:32.7]} 42... Rf5 {[%clk 0:00:43.2]} 43. Rd2
{[%clk 0:00:32.5]} 43... Bg1 {[%clk 0:00:31.3]} 44. Bc2 {[%clk 0:00:30.2]} 44...
Rf8 {[%clk 0:00:30.1]} 45. Bxg6 {[%clk 0:00:28.5]} 45... Ra8 {[%clk 0:00:29.2]}
46. Rd3 {[%clk 0:00:26.6]} 46... Kf6 {[%clk 0:00:27]} 47. Bxh5 {[%clk
0:00:26.4]} 47... Rh8 {[%clk 0:00:27.1]} 48. Kg4 {[%clk 0:00:23.2]} 48... Rg8+
{[%clk 0:00:24.6]} 49. Kh3 {[%clk 0:00:23.8]} 49... Rh8 {[%clk 0:00:23]} 50. Bg4
{[%clk 0:00:23.7]} 50... Bf2 {[%clk 0:00:23]} 51. h5 {[%clk 0:00:24.2]} 51...
Bb6 {[%clk 0:00:19.3]} 52. a4 {[%clk 0:00:24.2]} 52... Ra8 {[%clk 0:00:17.8]}
53. a5 {[%clk 0:00:24.3]} 53... Bf2 {[%clk 0:00:17.7]} 54. Rc3 {[%clk
0:00:21.4]} 54... Be1 {[%clk 0:00:17.4]} 55. Rxc7 {[%clk 0:00:20.2]} 1-0

[Event "Early-Titled-Tuesday-Blitz-January-30-2024"]
[Site "Chess.com"]
[Date "2024.01.30"]
[Round "4"]
[White "KarstenHansch"]
[Black "alvarorodriguezavila"]
[Result "1-0"]
[WhiteElo "2546"]
[BlackElo "2354"]
[TimeControl "180+1"]
[EndTime "8:41:30 PST"]
[Termination "KarstenHansch won on time"]

1. e4 {[%clk 0:03:00.9]} 1... c5 {[%clk 0:03:00]} 2. Nf3 {[%clk 0:03:00.9]} 2...
g6 {[%clk 0:03:00.5]} 3. Bc4 {[%clk 0:02:59.1]} 3... Bg7 {[%clk 0:03:00]} 4. O-O
{[%clk 0:02:59.4]} 4... e6 {[%clk 0:03:00.2]} 5. c3 {[%clk 0:02:59.9]} 5... Ne7
{[%clk 0:02:57.6]} 6. Bb3 {[%clk 0:02:56.4]} 6... d5 {[%clk 0:02:55]} 7. d3
{[%clk 0:02:56.7]} 7... Nbc6 {[%clk 0:02:51]} 8. Bg5 {[%clk 0:02:55.9]} 8... O-O
{[%clk 0:02:50.1]} 9. Nbd2 {[%clk 0:02:54.5]} 9... Qc7 {[%clk 0:02:35.1]} 10.
Qe2 {[%clk 0:02:50.5]} 10... b6 {[%clk 0:01:59.4]} 11. Rfe1 {[%clk 0:02:46.4]}
11... Ba6 {[%clk 0:01:34.2]} 12. a4 {[%clk 0:02:16.9]} 12... Rfe8 {[%clk
0:01:23.6]} 13. Rad1 {[%clk 0:02:15.8]} 13... d4 {[%clk 0:00:56.6]} 14. c4
{[%clk 0:02:07.5]} 14... e5 {[%clk 0:00:49.5]} 15. Nb1 {[%clk 0:02:02.8]} 15...
Bc8 {[%clk 0:00:46.8]} 16. Na3 {[%clk 0:02:02.3]} 16... Bg4 {[%clk 0:00:40.9]}
17. h3 {[%clk 0:02:01.1]} 17... Be6 {[%clk 0:00:34.7]} 18. Rf1 {[%clk 0:01:55]}
18... Qd7 {[%clk 0:00:35]} 19. Nd2 {[%clk 0:01:53.1]} 19... h6 {[%clk
0:00:31.3]} 20. Bh4 {[%clk 0:01:52.5]} 20... g5 {[%clk 0:00:32]} 21. Bg3 {[%clk
0:01:52.8]} 21... Ng6 {[%clk 0:00:32.8]} 22. Kh2 {[%clk 0:01:47.1]} 22... Nf4
{[%clk 0:00:33.2]} 23. Bxf4 {[%clk 0:01:46.1]} 23... exf4 {[%clk 0:00:33.8]} 24.
Nf3 {[%clk 0:01:40.6]} 24... Ne5 {[%clk 0:00:20.6]} 25. Nxe5 {[%clk 0:01:39.7]}
25... Bxe5 {[%clk 0:00:21.5]} 26. f3 {[%clk 0:01:39.6]} 26... h5 {[%clk
0:00:17.9]} 27. Kg1 {[%clk 0:01:39.2]} 27... g4 {[%clk 0:00:17.9]} 28. hxg4
{[%clk 0:01:31.4]} 28... hxg4 {[%clk 0:00:18.3]} 29. Kf2 {[%clk 0:01:32]} 29...
gxf3 {[%clk 0:00:14.3]} 30. gxf3 {[%clk 0:01:31.8]} 30... Kf8 {[%clk 0:00:12]}
31. Ke1 {[%clk 0:01:31.8]} 31... Ke7 {[%clk 0:00:10.9]} 32. Kd2 {[%clk
0:01:32.4]} 32... Rg8 {[%clk 0:00:11.1]} 33. Nc2 {[%clk 0:01:32.3]} 33... Rg3
{[%clk 0:00:11.2]} 34. Ne1 {[%clk 0:01:30]} 34... Rag8 {[%clk 0:00:11.4]} 35.
Rf2 {[%clk 0:01:30.4]} 35... Bf6 {[%clk 0:00:10.1]} 36. Rh2 {[%clk 0:01:30.3]}
36... Rg1 {[%clk 0:00:10.1]} 37. Ng2 {[%clk 0:01:28.8]} 37... Rxd1+ {[%clk
0:00:05.4]} 38. Bxd1 {[%clk 0:01:29.7]} 38... Be5 {[%clk 0:00:05.7]} 39. Qf2
{[%clk 0:01:29.7]} 39... Kd6 {[%clk 0:00:05.4]} 40. Qh4 {[%clk 0:01:28.7]} 40...
Qe7 {[%clk 0:00:03.9]} 41. Qxe7+ {[%clk 0:01:25.8]} 41... Kxe7 {[%clk
0:00:04.5]} 42. Be2 {[%clk 0:01:25.5]} 42... Kd6 {[%clk 0:00:04.9]} 43. Bf1
{[%clk 0:01:25.5]} 43... Rg3 {[%clk 0:00:05.5]} 44. Ke2 {[%clk 0:01:25.2]} 44...
Bh3 {[%clk 0:00:05.4]} 45. Kf2 {[%clk 0:01:15.7]} 45... f6 {[%clk 0:00:04.4]}
46. Ne1 {[%clk 0:01:05.9]} 46... Bxf1 {[%clk 0:00:03.9]} 47. Kxf1 {[%clk
0:01:06.8]} 47... a6 {[%clk 0:00:03.3]} 48. Kf2 {[%clk 0:01:06.9]} 48... Kc6
{[%clk 0:00:02.3]} 49. Ng2 {[%clk 0:01:06.6]} 49... b5 {[%clk 0:00:02.4]} 50.
axb5+ {[%clk 0:01:06.2]} 50... axb5 {[%clk 0:00:03.3]} 51. b3 {[%clk 0:01:06.3]}
51... bxc4 {[%clk 0:00:03.9]} 52. bxc4 {[%clk 0:01:07.2]} 52... Kb6 {[%clk
0:00:04.3]} 53. Rh4 {[%clk 0:01:07.5]} 53... Ka5 {[%clk 0:00:04.4]} 54. Nxf4
{[%clk 0:01:07.5]} 54... Bxf4 {[%clk 0:00:05.3]} 55. Rxf4 {[%clk 0:01:07.5]}
55... Rg6 {[%clk 0:00:06.2]} 56. Rg4 {[%clk 0:01:05]} 56... Rh6 {[%clk
0:00:05.9]} 57. f4 {[%clk 0:01:05.2]} 57... Kb4 {[%clk 0:00:06.4]} 58. e5 {[%clk
0:01:05.2]} 58... fxe5 {[%clk 0:00:06.1]} 59. fxe5 {[%clk 0:01:06.1]} 59... Re6
{[%clk 0:00:06.5]} 60. Re4 {[%clk 0:01:03.8]} 60... Kc3 {[%clk 0:00:06.7]} 61.
Ke2 {[%clk 0:01:04.3]} 61... Rg6 {[%clk 0:00:03.2]} 62. e6 {[%clk 0:01:03.8]}
62... Rg2+ {[%clk 0:00:03.8]} 63. Kf3 {[%clk 0:01:03.9]} 63... Rg8 {[%clk
0:00:03.8]} 64. Re5 {[%clk 0:00:59.6]} 64... Kxd3 {[%clk 0:00:03]} 65. Rxc5
{[%clk 0:00:59.9]} 65... Re8 {[%clk 0:00:03.1]} 66. Rc6 {[%clk 0:01:00.4]} 66...
Kd2 {[%clk 0:00:02.5]} 67. Ke4 {[%clk 0:01:00]} 67... d3 {[%clk 0:00:03.2]} 68.
Ke5 {[%clk 0:00:59.5]} 68... Ke3 {[%clk 0:00:03.1]} 69. Rd6 {[%clk 0:01:00]}
69... d2 {[%clk 0:00:03.4]} 70. c5 {[%clk 0:01:00.3]} 70... Rxe6+ {[%clk
0:00:01.9]} 71. Kxe6 {[%clk 0:01:00.3]} 1-0

[Event "Early-Titled-Tuesday-Blitz-January-30-2024"]
[Site "Chess.com"]
[Date "2024.01.30"]
[Round "4"]
[White "baki83"]
[Black "JoachimBN"]
[Result "0-1"]
[WhiteElo "2806"]
[BlackElo "2601"]
[TimeControl "180+1"]
[EndTime "8:41:31 PST"]
[Termination "JoachimBN won by resignation"]

1. e4 {[%clk 0:03:00.9]} 1... c5 {[%clk 0:02:50.7]} 2. Nf3 {[%clk 0:03:00.2]}
2... g6 {[%clk 0:02:51.3]} 3. d4 {[%clk 0:02:59.4]} 3... cxd4 {[%clk 0:02:52.2]}
4. Qxd4 {[%clk 0:02:59.5]} 4... Nf6 {[%clk 0:02:50.5]} 5. Nc3 {[%clk 0:02:58.8]}
5... Nc6 {[%clk 0:02:46.6]} 6. Qa4 {[%clk 0:02:58.6]} 6... d6 {[%clk 0:02:47.3]}
7. e5 {[%clk 0:02:59]} 7... dxe5 {[%clk 0:02:48.2]} 8. Nxe5 {[%clk 0:02:59.3]}
8... Bg7 {[%clk 0:02:34]} 9. Bb5 {[%clk 0:02:58.2]} 9... O-O {[%clk 0:02:31.2]}
10. Nxc6 {[%clk 0:02:57]} 10... bxc6 {[%clk 0:02:29.2]} 11. Bxc6 {[%clk
0:02:57.1]} 11... Rb8 {[%clk 0:02:29.9]} 12. O-O {[%clk 0:02:55.8]} 12... Qc7
{[%clk 0:02:29.1]} 13. Bf3 {[%clk 0:02:34.2]} 13... Bd7 {[%clk 0:02:27]} 14. Qh4
{[%clk 0:02:30.2]} 14... Rfc8 {[%clk 0:02:09.9]} 15. Re1 {[%clk 0:02:29.6]}
15... Qa5 {[%clk 0:01:59.8]} 16. Rxe7 {[%clk 0:01:51.9]} 16... Rxc3 {[%clk
0:01:39.4]} 17. bxc3 {[%clk 0:01:48.7]} 17... Qxc3 {[%clk 0:01:40.3]} 18. Qf4
{[%clk 0:01:41.3]} 18... Re8 {[%clk 0:00:56.4]} 19. Rxe8+ {[%clk 0:00:24.2]}
19... Bxe8 {[%clk 0:00:51.3]} 20. Bb2 {[%clk 0:00:24.4]} 20... Qxb2 {[%clk
0:00:49.1]} 21. Re1 {[%clk 0:00:24.7]} 21... Qxc2 {[%clk 0:00:20]} 22. Qb8
{[%clk 0:00:20.7]} 22... Qa4 {[%clk 0:00:18.1]} 23. g3 {[%clk 0:00:12.9]} 23...
h5 {[%clk 0:00:17.9]} 24. Re7 {[%clk 0:00:12.3]} 24... a5 {[%clk 0:00:15.2]} 25.
Qb3 {[%clk 0:00:07.4]} 25... Qb4 {[%clk 0:00:10.7]} 26. Rb7 {[%clk 0:00:04.2]}
26... Qe1+ {[%clk 0:00:09.5]} 27. Kg2 {[%clk 0:00:04.7]} 27... Qe5 {[%clk
0:00:08.2]} 28. Rb8 {[%clk 0:00:04]} 28... Kh7 {[%clk 0:00:08.3]} 29. Ra8 {[%clk
0:00:03.7]} 29... g5 {[%clk 0:00:07.6]} 30. Qd3+ {[%clk 0:00:03]} 30... Kh6
{[%clk 0:00:06.3]} 31. Qe3 {[%clk 0:00:02.8]} 31... Qxe3 {[%clk 0:00:04.1]} 32.
fxe3 {[%clk 0:00:03.7]} 32... g4 {[%clk 0:00:04.2]} 33. Bb7 {[%clk 0:00:04.4]}
33... a4 {[%clk 0:00:03.8]} 34. Ra5 {[%clk 0:00:04.3]} 34... Bd7 {[%clk
0:00:02.6]} 35. Kf2 {[%clk 0:00:04.6]} 35... Kg6 {[%clk 0:00:03]} 36. Ke2 {[%clk
0:00:04.5]} 36... Bf8 {[%clk 0:00:03.5]} 37. Kd3 {[%clk 0:00:04.5]} 37... a3
{[%clk 0:00:03.9]} 38. Be4+ {[%clk 0:00:02.7]} 38... Nxe4 {[%clk 0:00:03.6]} 39.
Kxe4 {[%clk 0:00:03.6]} 39... Be6 {[%clk 0:00:04.2]} 40. Ra6 {[%clk 0:00:03]}
40... Kg7 {[%clk 0:00:04.1]} 41. Ke5 {[%clk 0:00:02.8]} 41... Bxa2 {[%clk
0:00:03.9]} 42. e4 {[%clk 0:00:03.5]} 42... Be6 {[%clk 0:00:04.2]} 43. Kf4
{[%clk 0:00:03.9]} 43... a2 {[%clk 0:00:04.6]} 44. Kg5 {[%clk 0:00:04.2]} 44...
Bc5 {[%clk 0:00:03.4]} 45. e5 {[%clk 0:00:04.8]} 45... Bd4 {[%clk 0:00:03.6]}
0-1